[Event "22nd Ruzomberok Open 2019"]
[Site "Ruzomberok"]
[Date "2019.06.29"]
[Round "1.11"]
[White "Orvisky, Vladimir"]
[Black "Vacek, Ondrej"]
[Result "0-1"]
[ECO "A29"]
[WhiteElo "1719"]
[BlackElo "2125"]
[Annotator "NA"]
[PlyCount "98"]
[EventDate "2019.06.29"]
[EventType "swiss"]
[EventCountry "SVK"]
[SourceTitle "playchess.com"]
[Source "ChessBase"]
[SourceQuality "1"]
[TimeControl "40/5400+30:1800+30"]

1. c4 {[%emt 0:00:00]} e5 {[%emt 0:00:00]} 2. Nc3 {[%emt 0:00:00]} Nc6 {[%emt 0:00:04]} 3. Nf3 {[%emt 0:00:00]} Nf6 {[%emt 0:00:25]} 4. g3 {[%emt 0:01:00]} d5 {[%emt 0:01:01]} 5. cxd5 {[%emt 0:05:34]} Nxd5 {[%emt 0:00:14]} 6. Bg2 {[%emt 0:01:39]} Nb6 {[%emt 0:00:41]} 7. d3 {[%emt 0:01:23]} Be7 {[%emt 0:00:43]} 8. O-O {[%emt 0:00:51]} O-O {[%emt 0:00:18]} 9. Bd2 {[%emt 0:06:27]} Re8 {[%emt 0:00:54]} 10. Rc1 {[%emt 0:05:32]} Bf8 {[%emt 0:01:04]} 11. Qc2 {[%emt 0:07:34]} Bg4 {[%emt 0:03:59]} 12. Qb1 {[%emt 0:05:40]} a5 {[%emt 0:02:42]} 13. h3 {[%emt 0:11:43]} Bf5 {[%emt 0:06:52]} 14. Ne4 {[%emt 0:03:55]} Nd7 {[%emt 0:06:43]} 15. Be3 {[%emt 0:02:29]} h6 {[%emt 0:04:50]} 16. Nc5 {[%emt 0:00:09]} Nxc5 {[%emt 0:00:57]} 17. Bxc5 {[%emt 0:01:42]} Bd6 {[%emt 0:11:50]} 18. Nd2 {[%emt 0:02:31]} Qe7 {[%emt 0:02:53]} 19. Ne4 {[%emt 0:00:13]} Bxe4 {[%emt 0:02:52]} 20. Bxd6 {[%emt 0:00:09]} Qxd6 {[%emt 0:02:08]} 21. Bxe4 {[%emt 0:01:56]} Nd4 {[%emt 0:01:05]} 22. Rfe1 {[%emt 0:01:47]} c6 {[%emt 0:01:30]} 23. e3 {[%emt 0:02:50]} Ne6 {[%emt 0:02:02]} 24. Red1 {[%emt 0:04:16]} Rad8 {[%emt 0:02:31]} 25. Bf5 {[%emt 0:03:12]} g6 {[%emt 0:03:04]} 26. Bxe6 {[%emt 0:00:11]} Qxe6 {[%emt 0:00:30]} 27. Kg2 {[%emt 0:02:26]} Rd5 {[%emt 0:02:25]} 28. Rd2 {[%emt 0:00:08]} Red8 {[%emt 0:02:58]} 29. Rcd1 {[%emt 0:02:20]} e4 {[%emt 0:07:40]} 30. d4 {[%emt 0:03:20]} Qf5 {[%emt 0:01:21]} 31. Qc2 {[%emt 0:06:52]} h5 {[%emt 0:02:01]} 32. h4 {[%emt 0:01:46]} Qf3+ {[%emt 0:01:34]} 33. Kh2 {[%emt 0:03:24]} R8d6 {[%emt 0:05:00]} 34. Rh1 {[%emt 0:00:06]} Kg7 {[%emt 0:04:54]} 35. Qd1 {[%emt 0:01:37]} Qf6 {[%emt 0:01:09]} 36. a4 {[%emt 0:02:49]} c5 {[%emt 0:03:22]} 37. Qc2 {[%emt 0:06:31]} Qf3 {[%emt 0:01:40]} 38. Rhd1 {[%emt 0:01:00]} cxd4 {[%emt 0:03:41]} 39. Rxd4 {[%emt 0:00:59]} Rc6 40. Qd2 {[%emt 0:00:07]} Rdc5 {[%emt 0:04:37]} 41. Rd8 {[%emt 0:09:31]} Rc2 {[%emt 0:35:45]} 42. Qd4+ {[%emt 0:00:15]} Rf6 {[%emt 0:00:00]} 43. Rd2 {[%emt 0:01:02]} Rxd2 {[%emt 0:00:00]} 44. Qxd2 {[%emt 0:00:05]} Qxf2+ {[%emt 0:00:00]} 45. Qxf2 {[%emt 0:00:04]} Rxf2+ {[%emt 0:00:00]} 46. Kg1 {[%emt 0:01:16]} Rxb2 {[%emt 0:00:00]} 47. Rd7 {[%emt 0:00:31]} Kf6 {[%emt 0:00:00]} 48. Rd4 {[%emt 0:00:11]} Kf5 {[%emt 0:00:00]} 49. Rd5+ Kg4 0-1

[Event "22nd Ruzomberok Open 2019"]
[Site "Ruzomberok"]
[Date "2019.06.29"]
[Round "1.12"]
[White "Bombek, Peter"]
[Black "Laurencsik, Alexander"]
[Result "1-0"]
[ECO "A49"]
[WhiteElo "2159"]
[BlackElo "1742"]
[Annotator "NA"]
[PlyCount "95"]
[EventDate "2019.06.29"]
[EventType "swiss"]
[EventCountry "SVK"]
[SourceTitle "playchess.com"]
[Source "ChessBase"]
[SourceQuality "1"]
[TimeControl "40/5400+30:1800+30"]

1. d4 {[%emt 0:00:00]} Nf6 {[%emt 0:00:00]} 2. Nf3 {[%emt 0:00:00]} g6 {[%emt 0:00:00]} 3. g3 {[%emt 0:00:10]} Bg7 {[%emt 0:00:00]} 4. Bg2 {[%emt 0:00:05]} d6 {[%emt 0:00:13]} 5. O-O {[%emt 0:00:08]} O-O {[%emt 0:00:09]} 6. a4 {[%emt 0:00:08]} Nbd7 {[%emt 0:00:26]} 7. a5 {[%emt 0:00:10]} e5 {[%emt 0:01:59]} 8. dxe5 {[%emt 0:00:44]} dxe5 {[%emt 0:00:15]} 9. a6 {[%emt 0:01:22]} e4 {[%emt 0:03:12]} 10. axb7 {[%emt 0:04:17]} Bxb7 {[%emt 0:00:36]} 11. Nd4 {[%emt 0:00:15]} a6 {[%emt 0:04:38]} 12. Na3 {[%emt 0:04:19]} Qe7 {[%emt 0:04:35]} 13. c3 {[%emt 0:11:47]} Rfd8 {[%emt 0:04:57]} 14. Qc2 {[%emt 0:01:12]} Nb6 {[%emt 0:09:12]} 15. Bg5 {[%emt 0:03:47]} h6 {[%emt 0:02:18]} 16. Bxf6 {[%emt 0:00:36]} Bxf6 {[%emt 0:00:18]} 17. Rfd1 {[%emt 0:03:44]} Bg7 {[%emt 0:02:56]} 18. e3 {[%emt 0:02:57]} f5 {[%emt 0:03:54]} 19. Nb3 {[%emt 0:07:58]} Rxd1+ {[%emt 0:06:09]} 20. Rxd1 {[%emt 0:00:12]} Rd8 {[%emt 0:00:19]} 21. Rxd8+ {[%emt 0:01:25]} Qxd8 {[%emt 0:00:13]} 22. Nc5 {[%emt 0:00:32]} Bc8 {[%emt 0:04:19]} 23. Bf1 {[%emt 0:02:35]} a5 {[%emt 0:02:19]} 24. Nb5 {[%emt 0:04:30]} Kh7 {[%emt 0:07:14]} 25. Nb3 {[%emt 0:02:58]} c6 {[%emt 0:05:27]} 26. N5d4 {[%emt 0:01:48]} Qd5 {[%emt 0:02:43]} 27. c4 {[%emt 0:03:55]} Qd7 {[%emt 0:01:32]} 28. c5 {[%emt 0:02:12]} Bxd4 {[%emt 0:04:09]} 29. Nxd4 {[%emt 0:03:17]} Nd5 {[%emt 0:01:25]} 30. Qa4 {[%emt 0:00:45]} g5 {[%emt 0:14:42]} 31. Qxc6 {[%emt 0:04:03]} f4 {[%emt 0:05:53]} 32. Qxd7+ {[%emt 0:06:29]} Bxd7 {[%emt 0:00:42]} 33. Bc4 {[%emt 0:00:29]} Nb4 {[%emt 0:02:04]} 34. gxf4 {[%emt 0:03:01]} gxf4 35. exf4 {[%emt 0:01:43]} Kg6 {[%emt 0:03:50]} 36. Kg2 {[%emt 0:02:41]} Kf6 {[%emt 0:00:15]} 37. Kf1 {[%emt 0:00:53]} Nc6 {[%emt 0:01:22]} 38. Nxc6 {[%emt 0:01:02]} Bxc6 {[%emt 0:00:08]} 39. Ke2 {[%emt 0:00:14]} Kf5 {[%emt 0:00:33]} 40. Ke3 {[%emt 0:00:08]} h5 {[%emt 0:00:40]} 41. Bg8 {[%emt 0:34:48]} Kg6 {[%emt 0:32:13]} 42. Be6 {[%emt 0:00:22]} Kf6 {[%emt 0:00:58]} 43. Bc8 {[%emt 0:00:33]} h4 {[%emt 0:00:21]} 44. Kd4 {[%emt 0:00:57]} Ba8 {[%emt 0:00:48]} 45. Bd7 {[%emt 0:00:49]} Ke7 {[%emt 0:00:34]} 46. Bf5 {[%emt 0:00:32]} Bc6 {[%emt 0:00:37]} 47. Bxe4 {[%emt 0:00:22]} Ba4 {[%emt 0:00:08]} 48. Ke5 {[%emt 0:00:21]} 1-0

[Event "22nd Ruzomberok Open 2019"]
[Site "Ruzomberok"]
[Date "2019.06.29"]
[Round "1.13"]
[White "Zentko, Ladislav"]
[Black "Mrvova, Alena"]
[Result "0-1"]
[ECO "A05"]
[WhiteElo "1732"]
[BlackElo "2153"]
[Annotator "NA"]
[PlyCount "72"]
[EventDate "2019.06.29"]
[EventType "swiss"]
[EventCountry "SVK"]
[SourceTitle "playchess.com"]
[Source "ChessBase"]
[SourceQuality "1"]
[TimeControl "40/5400+30:1800+30"]

1. Nf3 {[%emt 0:00:00]} Nf6 {[%emt 0:00:00]} 2. d4 {[%emt 0:00:00]} e6 {[%emt 0:00:55]} 3. c4 {[%emt 0:00:44]} c5 {[%emt 0:00:30]} 4. Nc3 {[%emt 0:01:58]} Qa5 {[%emt 0:04:46]} 5. Bd2 {[%emt 0:03:07]} cxd4 {[%emt 0:02:21]} 6. Nxd4 {[%emt 0:01:18]} Qc5 {[%emt 0:01:13]} 7. e3 {[%emt 0:01:32]} Be7 {[%emt 0:03:07]} 8. Be2 {[%emt 0:03:57]} O-O {[%emt 0:03:13]} 9. O-O {[%emt 0:00:05]} Nc6 {[%emt 0:01:44]} 10. Na4 {[%emt 0:12:05]} Qe5 {[%emt 0:04:19]} 11. f4 {[%emt 0:03:28]} Qc7 {[%emt 0:01:32]} 12. Nb5 {[%emt 0:10:48]} Qb8 {[%emt 0:01:08]} 13. Nac3 {[%emt 0:00:36]} a6 {[%emt 0:03:21]} 14. Nd4 {[%emt 0:01:17]} Qa7 {[%emt 0:00:31]} 15. Nxc6 {[%emt 0:01:14]} bxc6 {[%emt 0:00:15]} 16. Kh1 {[%emt 0:05:09]} Rb8 {[%emt 0:01:44]} 17. Qc2 {[%emt 0:01:47]} d5 {[%emt 0:00:41]} 18. Rad1 {[%emt 0:05:58]} Bd7 {[%emt 0:03:34]} 19. Bc1 {[%emt 0:04:34]} Ne8 {[%emt 0:02:24]} 20. f5 {[%emt 0:05:44]} dxc4 {[%emt 0:02:37]} 21. fxe6 {[%emt 0:07:48]} Bxe6 {[%emt 0:00:10]} 22. Qe4 {[%emt 0:01:02]} Rc8 {[%emt 0:07:33]} 23. Bxc4 {[%emt 0:02:40]} Nd6 {[%emt 0:01:29]} 24. Rxd6 {[%emt 0:04:13]} Bxc4 {[%emt 0:01:13]} 25. Rh6 {[%emt 0:00:55]} gxh6 {[%emt 0:00:18]} 26. Qxc4 {[%emt 0:06:33]} Qc5 {[%emt 0:01:18]} 27. Qxa6 {[%emt 0:00:25]} f5 {[%emt 0:00:47]} 28. Qe2 {[%emt 0:01:43]} Bg5 {[%emt 0:01:00]} 29. Qh5 {[%emt 0:02:28]} Bxe3 {[%emt 0:01:26]} 30. g4 {[%emt 0:02:52]} f4 {[%emt 0:07:50]} 31. Qxh6 {[%emt 0:00:49]} Bxc1 {[%emt 0:01:57]} 32. Qe6+ {[%emt 0:00:26]} Kh8 {[%emt 0:00:06]} 33. Rxc1 {[%emt 0:00:19]} Rce8 {[%emt 0:00:29]} 34. Qd7 {[%emt 0:01:54]} Qf2 {[%emt 0:01:24]} 35. Qxc6 {[%emt 0:02:30]} f3 {[%emt 0:00:28]} 36. Rg1 {[%emt 0:01:09]} Re1 {[%emt 0:00:07]} 0-1

[Event "22nd Ruzomberok Open 2019"]
[Site "Ruzomberok"]
[Date "2019.06.29"]
[Round "1.14"]
[White "Motycakova, Monika"]
[Black "Cabanova, Kristina"]
[Result "1-0"]
[ECO "B46"]
[WhiteElo "2150"]
[BlackElo "1728"]
[Annotator "NA"]
[PlyCount "49"]
[EventDate "2019.06.29"]
[EventType "swiss"]
[EventCountry "SVK"]
[SourceTitle "playchess.com"]
[Source "ChessBase"]
[SourceQuality "1"]
[TimeControl "40/5400+30:1800+30"]

1. e4 {[%emt 0:00:00]} c5 {[%emt 0:00:16]} 2. Nf3 {[%emt 0:00:00]} e6 {[%emt 0:00:17]} 3. d4 {[%emt 0:00:00]} cxd4 {[%emt 0:00:41]} 4. Nxd4 {[%emt 0:00:00]} a6 {[%emt 0:00:45]} 5. Nc3 {[%emt 0:01:31]} Nc6 {[%emt 0:01:27]} 6. Be2 {[%emt 0:01:09]} Be7 {[%emt 0:01:12]} 7. a4 {[%emt 0:05:21]} Nf6 {[%emt 0:03:10]} 8. O-O {[%emt 0:01:44]} Qc7 {[%emt 0:02:54]} 9. Be3 {[%emt 0:01:39]} O-O {[%emt 0:00:55]} 10. f4 {[%emt 0:01:09]} d6 {[%emt 0:01:30]} 11. Kh1 {[%emt 0:01:48]} Bd7 {[%emt 0:01:50]} 12. Nb3 {[%emt 0:04:27]} Rac8 {[%emt 0:06:47]} 13. a5 {[%emt 0:06:46]} Qb8 {[%emt 0:08:21]} 14. Bf3 {[%emt 0:10:26]} Be8 {[%emt 0:06:27]} 15. g4 {[%emt 0:13:49]} Na7 {[%emt 0:05:56]} 16. g5 {[%emt 0:07:40]} Nd7 {[%emt 0:00:40]} 17. Bg2 {[%emt 0:02:48]} Nc5 {[%emt 0:03:22]} 18. f5 {[%emt 0:07:37]} exf5 {[%emt 0:12:28]} 19. Nd5 {[%emt 0:13:54]} Bd8 {[%emt 0:02:14]} 20. Nxc5 {[%emt 0:03:04]} dxc5 {[%emt 0:02:08]} 21. Bf4 {[%emt 0:00:05]} Qa8 {[%emt 0:00:08]} 22. Bd6 {[%emt 0:04:34]} Bb5 {[%emt 0:01:51]} 23. Rxf5 {[%emt 0:04:13]} Bd7 {[%emt 0:04:46]} 24. Rf4 {[%emt 0:03:40]} Be6 {[%emt 0:06:12]} 25. Qh5 {[%emt 0:02:12]} 1-0

[Event "22nd Ruzomberok Open 2019"]
[Site "Ruzomberok"]
[Date "2019.06.29"]
[Round "1.15"]
[White "Mc Aleenan, Charles"]
[Black "Hros, Roman"]
[Result "0-1"]
[ECO "A45"]
[WhiteElo "1746"]
[BlackElo "2195"]
[Annotator "NA"]
[PlyCount "88"]
[EventDate "2019.06.29"]
[EventType "swiss"]
[EventCountry "SVK"]
[SourceTitle "playchess.com"]
[Source "ChessBase"]
[SourceQuality "1"]
[TimeControl "40/5400+30:1800+30"]

1. d4 {[%emt 0:00:00]} Nf6 {[%emt 0:00:00]} 2. Bg5 {[%emt 0:00:11]} Ne4 {[%emt 0:00:04]} 3. Bf4 {[%emt 0:00:34]} e6 {[%emt 0:00:15]} 4. f3 {[%emt 0:02:37]} Bb4+ {[%emt 0:01:01]} 5. c3 {[%emt 0:03:08]} Bd6 {[%emt 0:00:12]} 6. Bxd6 {[%emt 0:01:42]} Nxd6 {[%emt 0:00:03]} 7. e4 {[%emt 0:04:58]} f5 {[%emt 0:00:27]} 8. e5 {[%emt 0:03:27]} Nf7 {[%emt 0:00:09]} 9. f4 {[%emt 0:03:35]} b6 {[%emt 0:01:04]} 10. Nf3 {[%emt 0:03:26]} Bb7 {[%emt 0:00:08]} 11. Be2 {[%emt 0:03:28]} Qe7 {[%emt 0:01:01]} 12. c4 {[%emt 0:04:25]} Nc6 {[%emt 0:03:28]} 13. Nc3 {[%emt 0:00:53]} O-O-O {[%emt 0:00:41]} 14. d5 {[%emt 0:05:19]} Nb4 {[%emt 0:03:38]} 15. a3 {[%emt 0:07:12]} Na6 {[%emt 0:00:01]} 16. Nb5 {[%emt 0:04:48]} Kb8 {[%emt 0:01:05]} 17. d6 {[%emt 0:03:17]} cxd6 {[%emt 0:01:58]} 18. exd6 {[%emt 0:02:50]} Qf6 {[%emt 0:02:23]} 19. b4 {[%emt 0:04:00]} g5 {[%emt 0:05:19]} 20. fxg5 {[%emt 0:02:45]} Nxg5 {[%emt 0:00:03]} 21. O-O {[%emt 0:05:59]} Rc8 {[%emt 0:04:39]} 22. Rc1 {[%emt 0:03:13]} e5 {[%emt 0:04:25]} 23. Qa4 {[%emt 0:03:40]} Rhg8 {[%emt 0:07:43]} 24. Nxa7 {[%emt 0:10:47]} Kxa7 {[%emt 0:02:12]} 25. b5 {[%emt 0:00:15]} Ne4 {[%emt 0:02:17]} 26. bxa6 {[%emt 0:01:33]} Bc6 {[%emt 0:00:23]} 27. Qc2 {[%emt 0:01:04]} Qxd6 {[%emt 0:00:35]} 28. Bd3 {[%emt 0:01:50]} Qxa3 {[%emt 0:01:28]} 29. Rb1 {[%emt 0:03:07]} Nc5 {[%emt 0:03:25]} 30. Be2 {[%emt 0:02:24]} Be4 {[%emt 0:08:40]} 31. Qd2 {[%emt 0:00:20]} f4 {[%emt 0:02:55]} 32. Kh1 {[%emt 0:01:21]} Rc6 {[%emt 0:12:28]} 33. Rb5 {[%emt 0:01:19]} d5 {[%emt 0:04:35]} 34. Ne1 {[%emt 0:02:43]} Rxg2 {[%emt 0:12:20]} 35. Nxg2 {[%emt 0:00:15]} Rg6 {[%emt 0:00:23]} 36. Bh5 {[%emt 0:03:00]} Rxg2 {[%emt 0:05:30]} 37. Qxg2 {[%emt 0:00:24]} Bxg2+ {[%emt 0:00:02]} 38. Kxg2 {[%emt 0:00:12]} Qa2+ {[%emt 0:00:31]} 39. Rf2 {[%emt 0:01:10]} Qxc4 {[%emt 0:00:02]} 40. Rfb2 {[%emt 0:00:22]} Qe4+ {[%emt 0:05:00]} 41. Kh3 {[%emt 0:07:18]} Nd7 {[%emt 0:06:43]} 42. Bg4 {[%emt 0:05:06]} Nf6 {[%emt 0:00:32]} 43. Bc8 {[%emt 0:05:17]} Qf3+ {[%emt 0:00:12]} 44. Kh4 {[%emt 0:00:10]} Qh5# {[%emt 0:00:04]} 0-1

[Event "22nd Ruzomberok Open 2019"]
[Site "Ruzomberok"]
[Date "2019.06.29"]
[Round "1.17"]
[White "Malinovsky, Jozef"]
[Black "Hrnciar, Roman"]
[Result "0-1"]
[ECO "B72"]
[WhiteElo "1715"]
[BlackElo "2096"]
[Annotator "NA"]
[PlyCount "88"]
[EventDate "2019.06.29"]
[EventType "swiss"]
[EventCountry "SVK"]
[SourceTitle "playchess.com"]
[Source "ChessBase"]
[SourceQuality "1"]
[TimeControl "40/5400+30:1800+30"]

1. e4 {[%emt 0:00:00]} c5 {[%emt 0:00:00]} 2. Nf3 {[%emt 0:00:00]} d6 {[%emt 0:00:00]} 3. d4 {[%emt 0:00:53]} cxd4 4. Nxd4 Nf6 {[%emt 0:01:03]} 5. Nc3 {[%emt 0:00:38]} Nc6 {[%emt 0:00:14]} 6. Be3 {[%emt 0:01:50]} g6 {[%emt 0:00:17]} 7. Qd2 {[%emt 0:03:13]} Bg7 {[%emt 0:00:13]} 8. Be2 {[%emt 0:00:44]} O-O {[%emt 0:00:32]} 9. O-O-O {[%emt 0:02:39]} Nxd4 {[%emt 0:02:28]} 10. Bxd4 {[%emt 0:00:45]} Qa5 {[%emt 0:00:01]} 11. Kb1 {[%emt 0:01:17]} Re8 {[%emt 0:00:28]} 12. f3 {[%emt 0:02:55]} Be6 {[%emt 0:03:03]} 13. Bxf6 {[%emt 0:04:50]} exf6 {[%emt 0:01:23]} 14. Nd5 {[%emt 0:00:58]} Qxd2 {[%emt 0:01:16]} 15. Rxd2 {[%emt 0:00:08]} Bxd5 {[%emt 0:01:58]} 16. Rxd5 {[%emt 0:00:20]} f5 {[%emt 0:00:32]} 17. Bb5 {[%emt 0:01:44]} Re5 {[%emt 0:01:04]} 18. Bc4 {[%emt 0:04:09]} fxe4 {[%emt 0:03:34]} 19. Rxe5 {[%emt 0:01:34]} Bxe5 {[%emt 0:01:06]} 20. fxe4 {[%emt 0:00:07]} Kg7 {[%emt 0:00:35]} 21. Bd5 {[%emt 0:00:40]} f5 {[%emt 0:01:07]} 22. h3 {[%emt 0:03:01]} f4 {[%emt 0:00:51]} 23. b3 {[%emt 0:01:09]} Rb8 {[%emt 0:00:59]} 24. c4 {[%emt 0:00:21]} b6 {[%emt 0:00:11]} 25. Kc2 {[%emt 0:00:44]} g5 {[%emt 0:02:41]} 26. Kd3 {[%emt 0:01:14]} h5 {[%emt 0:00:32]} 27. Ke2 {[%emt 0:01:40]} Kf6 {[%emt 0:03:12]} 28. Rf1 {[%emt 0:00:37]} g4 {[%emt 0:01:19]} 29. hxg4 {[%emt 0:02:05]} hxg4 {[%emt 0:00:08]} 30. Rh1 {[%emt 0:00:24]} Rf8 {[%emt 0:01:18]} 31. Rh4 {[%emt 0:09:12]} f3+ {[%emt 0:02:19]} 32. gxf3 {[%emt 0:01:25]} gxf3+ {[%emt 0:00:20]} 33. Kf1 {[%emt 0:00:31]} Kg5 {[%emt 0:00:37]} 34. Rh7 {[%emt 0:01:07]} Kg4 {[%emt 0:00:46]} 35. Be6+ {[%emt 0:01:20]} Kg3 {[%emt 0:00:17]} 36. Rh5 {[%emt 0:02:07]} Re8 {[%emt 0:01:38]} 37. Bd5 {[%emt 0:01:18]} Re7 {[%emt 0:00:40]} 38. Rg5+ {[%emt 0:02:35]} Kf4 {[%emt 0:00:17]} 39. Rf5+ {[%emt 0:00:16]} Ke3 {[%emt 0:00:13]} 40. Rf7 {[%emt 0:00:34]} Re8 {[%emt 0:00:46]} 41. Rh7 {[%emt 0:30:46]} b5 {[%emt 0:36:03]} 42. cxb5 {[%emt 0:00:51]} Rc8 {[%emt 0:00:31]} 43. Bc6 {[%emt 0:00:22]} Rg8 {[%emt 0:00:11]} 44. a4 {[%emt 0:02:33]} Rg2 {[%emt 0:00:27]} 0-1

[Event "22nd Ruzomberok Open 2019"]
[Site "Ruzomberok"]
[Date "2019.06.29"]
[Round "1.18"]
[White "Cech, Dominik"]
[Black "Konkol, Emil"]
[Result "1-0"]
[ECO "C42"]
[WhiteElo "2092"]
[BlackElo "1714"]
[Annotator "NA"]
[PlyCount "53"]
[EventDate "2019.06.29"]
[EventType "swiss"]
[EventCountry "SVK"]
[SourceTitle "playchess.com"]
[Source "ChessBase"]
[SourceQuality "1"]
[TimeControl "40/5400+30:1800+30"]

1. e4 {[%emt 0:00:00]} e5 {[%emt 0:00:00]} 2. Nf3 {[%emt 0:00:13]} Nf6 {[%emt 0:00:22]} 3. Nxe5 {[%emt 0:00:30]} d6 {[%emt 0:01:26]} 4. Nf3 {[%emt 0:00:19]} Nxe4 {[%emt 0:00:28]} 5. Nc3 {[%emt 0:00:46]} Nxc3 {[%emt 0:02:03]} 6. dxc3 {[%emt 0:00:01]} Nc6 {[%emt 0:03:06]} 7. Bf4 {[%emt 0:02:47]} Be7 {[%emt 0:01:04]} 8. Qd2 {[%emt 0:01:10]} O-O {[%emt 0:01:07]} 9. O-O-O {[%emt 0:02:29]} Re8 {[%emt 0:02:07]} 10. h3 {[%emt 0:06:26]} Bf6 {[%emt 0:01:34]} 11. g4 {[%emt 0:05:09]} h6 {[%emt 0:01:47]} 12. Rg1 {[%emt 0:12:50]} g5 {[%emt 0:00:18]} 13. Be3 {[%emt 0:03:12]} Ne5 {[%emt 0:03:45]} 14. Be2 {[%emt 0:07:34]} Be6 {[%emt 0:05:15]} 15. Kb1 {[%emt 0:06:44]} Nc4 {[%emt 0:02:35]} 16. Bxc4 {[%emt 0:01:04]} Bxc4 {[%emt 0:00:02]} 17. h4 {[%emt 0:00:45]} gxh4 {[%emt 0:04:56]} 18. g5 {[%emt 0:02:41]} hxg5 {[%emt 0:02:53]} 19. Bxg5 {[%emt 0:22:58]} Kf8 {[%emt 0:00:57]} 20. Qf4 {[%emt 0:03:11]} Bxg5 {[%emt 0:03:32]} 21. Nxg5 {[%emt 0:00:32]} Be6 {[%emt 0:00:28]} 22. Qxh4 {[%emt 0:01:16]} Ke7 {[%emt 0:01:46]} 23. Nxf7+ {[%emt 0:06:09]} Kxf7 {[%emt 0:00:32]} 24. Qh7+ {[%emt 0:00:18]} Kf6 {[%emt 0:00:25]} 25. Qg7+ {[%emt 0:00:16]} Kf5 {[%emt 0:00:22]} 26. Qg4+ {[%emt 0:00:12]} Kf6 {[%emt 0:00:59]} 27. Qg5+ {[%emt 0:00:08]} 1-0

[Event "22nd Ruzomberok Open 2019"]
[Site "Ruzomberok"]
[Date "2019.06.29"]
[Round "1.19"]
[White "Verba, Vladimir"]
[Black "Bednar, Jan"]
[Result "0-1"]
[ECO "B24"]
[WhiteElo "1708"]
[BlackElo "2084"]
[Annotator "NA"]
[PlyCount "114"]
[EventDate "2019.06.29"]
[EventType "swiss"]
[EventCountry "SVK"]
[SourceTitle "playchess.com"]
[Source "ChessBase"]
[SourceQuality "1"]
[TimeControl "40/5400+30:1800+30"]

1. e4 {[%emt 0:00:00]} c5 {[%emt 0:00:00]} 2. Nc3 {[%emt 0:00:00]} Nc6 {[%emt 0:00:14]} 3. Bb5 {[%emt 0:00:41]} Nd4 {[%emt 0:00:12]} 4. Nf3 {[%emt 0:00:16]} Nxb5 {[%emt 0:00:16]} 5. Nxb5 {[%emt 0:00:11]} a6 {[%emt 0:00:12]} 6. Nc3 {[%emt 0:00:06]} e6 {[%emt 0:00:16]} 7. d4 {[%emt 0:00:10]} cxd4 {[%emt 0:00:05]} 8. Qxd4 {[%emt 0:00:12]} d6 {[%emt 0:00:59]} 9. O-O {[%emt 0:02:44]} Qc7 {[%emt 0:00:31]} 10. a4 {[%emt 0:04:25]} Bd7 {[%emt 0:03:17]} 11. Be3 {[%emt 0:04:35]} Nf6 {[%emt 0:01:18]} 12. h3 {[%emt 0:08:32]} Bc6 {[%emt 0:06:58]} 13. Rad1 {[%emt 0:08:05]} Be7 {[%emt 0:01:33]} 14. Rfe1 {[%emt 0:08:03]} O-O {[%emt 0:01:46]} 15. Qb6 {[%emt 0:17:55]} Qxb6 {[%emt 0:02:50]} 16. Bxb6 {[%emt 0:01:30]} Rfc8 {[%emt 0:00:15]} 17. Nd4 {[%emt 0:03:41]} Be8 {[%emt 0:01:57]} 18. Nb3 {[%emt 0:08:06]} Nd7 {[%emt 0:02:17]} 19. Be3 {[%emt 0:02:20]} Ne5 {[%emt 0:02:49]} 20. f4 {[%emt 0:04:15]} Nc4 {[%emt 0:00:19]} 21. Bc1 {[%emt 0:00:13]} Rc7 {[%emt 0:05:48]} 22. Nd2 {[%emt 0:03:08]} Na3 {[%emt 0:01:38]} 23. Nf3 {[%emt 0:06:49]} Nxc2 {[%emt 0:00:48]} 24. Re2 {[%emt 0:01:03]} Nb4 {[%emt 0:00:36]} 25. f5 {[%emt 0:02:08]} Rac8 {[%emt 0:00:45]} 26. Bf4 {[%emt 0:01:22]} e5 {[%emt 0:04:10]} 27. Be3 {[%emt 0:01:21]} Rc4 {[%emt 0:01:00]} 28. Nd2 {[%emt 0:03:32]} R4c6 {[%emt 0:00:44]} 29. Nb3 {[%emt 0:00:33]} Rxc3 {[%emt 0:01:20]} 30. bxc3 {[%emt 0:00:19]} Rxc3 {[%emt 0:00:12]} 31. Na5 {[%emt 0:01:00]} Bxa4 {[%emt 0:01:13]} 32. Rb1 {[%emt 0:00:55]} Bb5 {[%emt 0:01:31]} 33. Ree1 Ra3 {[%emt 0:03:27]} 34. Bb6 {[%emt 0:03:12]} d5 {[%emt 0:01:29]} 35. exd5 {[%emt 0:00:53]} f6 {[%emt 0:04:24]} 36. Red1 {[%emt 0:01:49]} Bd3 {[%emt 0:03:45]} 37. Rxb4 {[%emt 0:02:09]} Bxb4 {[%emt 0:00:17]} 38. Nxb7 {[%emt 0:00:07]} Bxf5 {[%emt 0:03:02]} 39. d6 {[%emt 0:00:53]} Bd7 {[%emt 0:00:18]} 40. Bc5 {[%emt 0:01:01]} a5 {[%emt 0:01:29]} 41. Rb1 {[%emt 0:31:31]} Rd3 {[%emt 0:39:49]} 42. Bxb4 {[%emt 0:00:00]} axb4 {[%emt 0:00:00]} 43. Rxb4 {[%emt 0:00:00]} Bc6 {[%emt 0:00:00]} 44. Nd8 {[%emt 0:00:00]} Rxd6 {[%emt 0:00:00]} 45. Rb8 {[%emt 0:00:00]} Rd1+ {[%emt 0:00:00]} 46. Kf2 {[%emt 0:00:00]} Be8 {[%emt 0:00:00]} 47. Ke2 {[%emt 0:00:00]} Rd7 {[%emt 0:00:00]} 48. Ne6 {[%emt 0:00:00]} Re7 {[%emt 0:00:00]} 49. Nc5 {[%emt 0:00:00]} Kf7 {[%emt 0:00:00]} 50. Ne4 {[%emt 0:00:00]} Kg6 {[%emt 0:00:00]} 51. g4 {[%emt 0:00:00]} h5 {[%emt 0:00:00]} 52. Ke3 {[%emt 0:00:00]} hxg4 {[%emt 0:00:00]} 53. hxg4 {[%emt 0:00:00]} Bc6 {[%emt 0:00:00]} 54. Ng3 {[%emt 0:00:00]} Ra7 {[%emt 0:00:00]} 55. Nf5 {[%emt 0:00:00]} Ra3+ {[%emt 0:00:00]} 56. Kd2 {[%emt 0:00:00]} Bd7 {[%emt 0:00:00]} 57. Ne3 {[%emt 0:00:00]} Ra4 {[%emt 0:00:00]} 0-1